Workbook

Sheet FORMULAIRE
A1: NUMÉRO DE MATRICULE: | D1: 689000000 | G1: Destination: | H1: Montréal | K1: #Frais de voyage | L1: =+U6 ->  | T1: Allée | U1: # frais de voyage | Y1: 000-0-00000-000 | AP1: FALSE | AQ1: =CODE(AP1) -> 70 | AR1: oui | AS1: =IF(AQ1=86,$AG$9,AB14) -> 0
F2: Nom du supérieur immédiat | O2: AM PM | T2: Allée/Retour | U2: =(MID(B3,1,2)) ->  | Y2: 999-9-99999-999 | AN2: oui | AP2: FALSE | AQ2: =CODE(AP2) -> 70 | AR2: oui | AS2: 0
A3: Nom: | J3: DÉPART: | L3: HEURE: | T3: Retour | U3: =CODE(U2) ->  | AE3: =IF(AA41=86,8," ") ->  | AP3: FALSE | AQ3: =CODE(AP3) -> 70 | AR3: oui | AS3: 0
F4: Objet | J4: ARRIVÉE: | L4: HEURE: | U4: =TODAY() -> 2021-11-22 | V4: =TODAY() -> 2021-11-22 | AP4: FALSE | AQ4: 70 | AR4: oui | AS4: 0
A5: Prénom: | AP5: FALSE | AQ5: 70 | AR5: oui | AS5: 0
F6: Précisez la raison de votre voyage | J6: DÉPART: | L6: HEURE: | T6: =IF(U8=TRUE,CONCATENATE(U3,MID(Y7,2,4)," ")) -> FALSE | U6: =IF(U8=TRUE,CONCATENATE(U2,MID(Y7,7,6))," ") ->  | AP6: FALSE | AQ6: 70 | AR6: oui | AS6: 0
A7: Adresse : | J7: ARRIVÉE: | L7: HEURE: | U7: =IF(U2=TRUE,U2," ") ->  | Y7: =NOW() -> 2021-11-22T13:33:34.930 | AP7: FALSE | AQ7: 70 | AR7: oui | AS7: 0
A8: Ville : | U8: =ISNUMBER(U3) -> FALSE | AF8: covoiturage | AH8: 0.2 | AP8: FALSE | AQ8: 70 | AR8: oui | AS8: 0
A9: Province : | L9: Réservé à l'administration | AG9: 0.64 | AH9: 1 | AP9: FALSE | AQ9: 70 | AR9: oui | AS9: 0
D10: CODE POSTAL | L10: Vérifié par: _____________________________________ | AG10: 0.46 | AH10: 0.49 | AJ10: Frais fondés sur les reçus | AP10: FALSE | AQ10: 70 | AR10: oui | AS10: 0
L11: Date de paiement: | T11: =+MID(Y7,7,6) -> 564987 | AE11: Kilometre | AJ11: Autobus | AN11: Province | AP11: FALSE | AQ11: 70 | AR11: oui | AS11: 0
A12: Date | B12: Frais de Km | D12: Nb Km / jour | E12: 0,46$ /km ou 0,49$ /km | F12: Covoiturage | G12: Frais quotidiens | H12: Frais fondés sur les reçus | I12: Montant du reçu ($) | J12: Taux de remboursement Annexe A | L12: Frais divers et Faux frais | M12: Total de la ligne | N12: Justification | AE12: KM parcourus (explications requises) | AG12: 0.46 | AH12: 0.64 | AJ12: Autres | AN12: Alberta | AP12: FALSE | AQ12: 70 | AR12: oui | AS12: 0
E13: =+AC14+Y14 -> 0 | M13: =IF(ISTEXT($H$1),V14," ") -> 0 | V13: Total ligne | W13: Frais fondés sur le recu | X13: Faux frais | Y13: Km en deca de 15 km | Z13: remb frais quotidien | AA13: KM/ covoiturage | AB13: Kilometrage | AC13: Kilometrage (Km) | AD13: Frais remb (montant employés) | AE13: KM parcourus à l'intérieur de 15 km | AJ13: Avion | AN13: Colombie-Britannique | AP13: FALSE | AQ13: =CODE(AP13) -> 70 | AR13: oui | AS13: =IF(AQ13=86,$AG$9,AB26) -> 0
E14: =+AC15+Y15 -> 0 | M14: 0 | V14: =IF(ISNA(Z14+AC14+AD14+I13+Y14+X14)=FALSE,Z14+AC14+AD14+I13+Y14+X14," ") -> 0 | X14: =IF(AR20=84,10,IF(AR20=86,10,0)) -> 0 | Y14: =+IF(AA41=86,10,IF(V41=86,12,IF(AA41=84,10,IF(V41=84,12,0)))) -> 0 | Z14: =IF(ISNA(VLOOKUP(G13,$AO$57:$AP$79,2,FALSE))=TRUE, ,VLOOKUP($G13,$AO$57:$AP$79,2,FALSE)) -> 0 | AA14: =IF(AQ1=86,$AG$9,IF(AQ1=84,$AG$9,AB14)) -> 0 | AB14: =IF(ISNA(VLOOKUP(B13,$AE$12:$AG$38,3))=TRUE, ,VLOOKUP($B13,$AE$12:$AG$38,3)) -> 0 | AC14: =IF((AA14=0.64),(AB14+0.2)*D13,AB14*D13) -> 0 | AD14: =IF(ISNA(VLOOKUP($J13,$AH$40:$AI$78,2,FALSE))=TRUE, ,VLOOKUP($J13,$AH$40:$AI$78,2,FALSE)) -> 0 | AE14: Blanc-Sablon - Québec | AG14: 0.46 | AH14: 0.64 | AJ14: Essence | AN14: Île-du-Prince-Édouard | AP14: FALSE | AQ14: =CODE(AP14) -> 70 | AR14: oui | AS14: =IF(AQ14=86,$AG$9,AB27) -> 0
E15: 0 | M15: 0 | V15: 0 | X15: =IF(AR21=84,10,IF(AR21=86,10,0)) -> 0 | Y15: =+IF(AA42=86,10,IF(V42=86,12,IF(AA42=84,10,IF(V42=84,12,0)))) -> 0 | Z15: =IF(ISNA(VLOOKUP(G14,$AO$57:$AP$72,2,FALSE))=TRUE, ,VLOOKUP($G14,$AO$57:$AP$79,2,FALSE)) -> 0 | AA15: =IF(AQ2=86,$AG$9,IF(AQ2=84,$AG$9,AB15)) -> 0 | AB15: 0 | AC15: =IF((AA15=0.64),(AB15+0.2)*D14,AB15*D14) -> 0 | AD15: 0 | AE15: Blanc-Sablon - Rimouski | AG15: 0.46 | AH15: 0.64 | AJ15: Hébergement, fact d'hôtel | AN15: Manitoba | AP15: TRUE | AQ15: =CODE(AP15) -> 86 | AR15: oui | AS15: =IF(AQ15=86,$AG$9,AB28) -> 0.64
E16: 0 | M16: 0 | V16: 0 | X16: 0 | Y16: 0 | Z16: =IF(ISNA(VLOOKUP(G15,$AO$57:$AP$79,2,FALSE))=TRUE, ,VLOOKUP($G15,$AO$57:$AP$79,2,FALSE)) -> 0 | AA16: 0 | AB16: 0 | AC16: 0 | AD16: 0 | AE16: Blanc-Sablon - St-John | AG16: 0.46 | AH16: 0.64 | AJ16: Location automobile | AN16: Nouveau-Brunswick
E17: 0 | M17: 0 | V17: 0 | X17: 0 | Y17: 0 | Z17: 0 | AA17: 0 | AB17: 0 | AC17: 0 | AD17: 0 | AE17: KM routes non-pavées (extérieur territoire) | AG17: 0.92 | AH17: 0.64 | AJ17: Stationnement, $ du reçu | AN17: Nunavut | AV17: Objet
E18: 0 | M18: 0 | V18: 0 | X18: 0 | Y18: 0 | Z18: 0 | AA18: 0 | AB18: 0 | AC18: 0 | AD18: 0 | AE18: KM routes non-pavées (sur le territoire) | AG18: 0.98 | AH18: 0.64 | AJ18: Taxi, $ du reçu | AN18: Québec | AV18: Formation
E19: 0 | M19: 0 | V19: 0 | X19: 0 | Y19: 0 | Z19: 0 | AA19: 0 | AB19: 0 | AC19: 0 | AD19: 0 | AE19: Lourdes-de-Blanc-Sablon - Blanc-Sablon | AG19: 0.49 | AH19: 0.64 | AJ19: Train, $ du reçu | AN19: Saskatchewan | AQ19: Faux frais | AR19: 10 | AV19: Rencontre
E20: 0 | M20: 0 | V20: 0 | X20: 0 | Y20: 0 | Z20: 0 | AA20: 0 | AB20: 0 | AC20: 0 | AD20: 0 | AE20: Lourdes-de-Blanc-Sablon - St-Paul | AG20: 0.49 | AH20: 0.64 | AJ20: Transport en commun | AN20: Terre-Neuve-et-Labrador | AQ20: FALSE | AR20: =CODE(AQ20) -> 70 | AS20: =IF(AR20=86,10," ") ->  | AV20: Réunion syndicale
E21: 0 | M21: 0 | V21: 0 | X21: 0 | Y21: 0 | Z21: 0 | AA21: 0 | AB21: 0 | AC21: 0 | AD21: 0 | AE21: Lourdes-de-Blanc-Sablon - Vieux-Fort | AG21: 0.49 | AH21: 0.64 | AJ21: Traverse Blanc-Sablon - St-Barbe | AN21: Territoire du Nord-Ouest | AQ21: FALSE | AR21: =CODE(AQ21) -> 70 | AS21: =IF(AR21=86,10," ") ->  | AV21: Réunion
E22: 0 | M22: 0 | V22: 0 | X22: 0 | Y22: 0 | Z22: 0 | AA22: 0 | AB22: 0 | AC22: 0 | AD22: 0 | AE22: Montréal - Ottawa | AG22: 0.46 | AH22: 0.64 | AJ22: Traverse Port-aux-Basques - North Sydney | AN22: Yukon | AQ22: FALSE | AR22: =CODE(AQ22) -> 70 | AS22: =IF(AR22=86,10," ") ->  | AV22: Autre
E23: 0 | M23: 0 | V23: 0 | X23: 0 | Y23: 0 | Z23: 0 | AA23: 0 | AB23: 0 | AC23: 0 | AD23: 0 | AE23: Montréal - Toronto | AG23: 0.46 | AH23: 0.64 | AQ23: FALSE | AR23: 70
E24: 0 | M24: 0 | V24: 0 | X24: 0 | Y24: 0 | Z24: 0 | AA24: 0 | AB24: 0 | AC24: 0 | AD24: 0 | AE24: Québec - Sherbrooke | AG24: 0.46 | AH24: 0.64 | AQ24: FALSE | AR24: 70
E25: 0 | M25: 0 | V25: 0 | X25: 0 | Y25: 0 | Z25: 0 | AA25: 0 | AB25: 0 | AC25: 0 | AD25: 0 | AE25: Québec-Montréal | AG25: 0.46 | AH25: 0.64 | AQ25: FALSE | AR25: 70
A26: TOTAL | E26: =SUM(E13:E25) -> 0 | G26: =SUM(Z14:Z26) -> 0 | I26: =SUM(I13:I25) -> 0 | J26: =SUM(AD14:AD28) -> 0 | L26: =SUM(X14:X26) -> 0 | M26: =+E26+G26+I26+J26+L26 -> 0 | V26: 0 | X26: 0 | Y26: 0 | Z26: 0 | AA26: 0 | AB26: 0 | AC26: 0 | AD26: 0 | AE26: Rivière-St-Paul - Blanc-Sablon | AG26: 0.49 | AH26: 0.64 | AQ26: FALSE | AR26: 70
I27: (MOINS) DEMANDE D'AVANCE DE FONDS, S'IL Y A LIEU | X27: 10 | AA27: 0 | AE27: Sept-Îles - Baie-Comeau | AG27: 0.46 | AH27: 0.64 | AQ27: FALSE | AR27: 70
O28: Total du frais de déplacement | X28: =IF(AR34=84,10,0) -> 0 | Y28: =+IF(AA55=86,10,IF(V55=86,12,)) -> 0 | Z28: =IF(ISNA(VLOOKUP(G27,$AO$57:$AP$79,2,FALSE))=TRUE, ,VLOOKUP($G27,$AO$57:$AP$79,2,FALSE)) -> 0 | AA28: =IF(AQ15=86,$AG$9,IF(AQ15=84,$AG$9,AB28)) -> 0.64 | AB28: =IF(ISNA(VLOOKUP(A27,$AE$12:$AG$38,3))=TRUE, ,VLOOKUP($A27,$AE$12:$AG$38,3)) -> 0 | AC28: =IF((AA28=0.64),(AB28+0.2)*D27,AB28*D27) -> 0 | AD28: =IF(ISNA(VLOOKUP($J27,$AH$40:$AI$78,2,FALSE))=TRUE, ,VLOOKUP($J27,$AH$40:$AI$78,2,FALSE)) -> 0 | AE28: Sept-Îles - Havre-St-Pierre | AG28: 0.46 | AH28: 0.64 | AK28: Supérieur Immédiat | AQ28: FALSE | AR28: 70
A29: Signature de l'employé | F29: CODE: | J29: Projet/mesure: | O29: =SUM(M13:M25)-M27 -> 0 | AE29: Sept-Îles - La Malbaie | AG29: 0.46 | AH29: 0.64 | AK29: Ana Osborne | AQ29: FALSE | AR29: 70
F30: CODE: | J30: Projet/mesure: | AE30: Sept-Îles - Montréal | AG30: 0.46 | AH30: 0.64 | AK30: Céline Girard | AQ30: FALSE | AR30: 70
F31: CODE: | J31: Projet/mesure: | AE31: Sept-Îles - Natasquan | AG31: 0.46 | AH31: 0.64 | AK31: Deborah Foltin | AQ31: FALSE | AR31: 70
A32: Signature du gestionnaire | AE32: Sept-Îles - Québec | AG32: 0.46 | AH32: 0.64 | AK32: Kelly Anderson | AQ32: FALSE | AR32: 70
AE33: St-Barbe - Corner Brooke | AG33: 0.46 | AH33: 0.64 | AK33: Marc-André Masse | AQ33: TRUE | AR33: 86 | AS33: 10
A34: DATE: | B34: =TODAY() -> 2021-11-22 | AE34: St-Barbe - Deer Lake | AG34: 0.46 | AH34: 0.64 | AK34: Marie Hamel
AE35: St-Barbe - Port-aux-Basques | AG35: 0.46 | AH35: 0.64 | AK35: Marie-Pier Rioux
AE36: St-Barbe - Stephenville | AG36: 0.46 | AH36: 0.64 | AK36: Martine Joncas
AE37: Vieux-Fort - Blanc-Sablon | AG37: 0.49 | AH37: 0.64 | AK37: Nadia Landry
AE38: Vieux-Fort - Rivière-St-Paul | AG38: 0.49 | AH38: 0.64 | AK38: Philip Joycey
AD39: Baie-Comeau | AH39: Remb frais | AK39: Pierre Boudreau
Z40: Km parcouru à l,interieur de 15 km | AD40: Blanc-Sablon | AK40: Rebecca Nadeau-Monger
Z41: =EXACT($AE$13,B13) -> FALSE | AA41: =CODE(Z41) -> 70 | AD41: Chevery | AH41: Chevery / Harrington Harbour (35$) | AI41: 35 | AK41: Stéphane Daoust
Z42: =EXACT($AE$13,B14) -> FALSE | AA42: =CODE(Z42) -> 70 | AD42: Gatineau | AH42: Chevery / La Tabatière (163$) | AI42: 163 | AK42: Vincent Joncas
Z43: FALSE | AA43: =CODE(Z43) -> 70 | AD43: Harrington Harbour | AH43: Chevery / Mutton Bay (135$) | AI43: 135
Z44: FALSE | AA44: 70 | AD44: Havre-St-Pierre | AH44: Chevery / St-Augustin (261$) | AI44: 261
Z45: FALSE | AA45: =CODE(Z45) -> 70 | AD45: La Romaine | AH45: Chevery / Tête-à-la-Baleine (78$) | AI45: 78
Z46: FALSE | AA46: 70 | AD46: La Tabatière | AH46: Chevery / Vieux Fort (433$) | AI46: 433
Z47: FALSE | AA47: 70 | AD47: Lourdes-de-Blanc-Sablon | AH47: Harrington Harbour / Tête-à-la-Baleine (63$) | AI47: 63
Z48: FALSE | AA48: 70 | AD48: Montréal | AH48: Kegaska / Chevery (304$) | AI48: 304
Z49: FALSE | AA49: 70 | AD49: Mutton Bay | AH49: Kegaska / Harrington Harbour (339$) | AI49: 339
Z50: FALSE | AA50: 70 | AD50: Port Menier | AH50: Kegaska / La Romaine (114$) | AI50: 114
Z51: FALSE | AA51: 70 | AD51: Québec | AH51: Kegaska / La Tabatière (466$) | AI51: 466
Z52: FALSE | AA52: 70 | AD52: Rivière St-Augustin | AH52: Kegaska / Mutton Bay (439$) | AI52: 439
Z53: FALSE | AA53: 70 | AD53: Rivière St-Paul | AH53: Kegaska / St-Augustin (564$) | AI53: 564
Z54: FALSE | AA54: 70 | AD54: Sept-Îles | AH54: Kegaska / Tête-à-la-Baleine (382$) | AI54: 382
Z55: FALSE | AA55: 70 | AD55: Sherbrooke | AH55: Kegaska / Vieux Fort (737$) | AI55: 737
Z56: FALSE | AA56: 70 | AD56: Tête-à-la-Baleine | AH56: La Romaine / Chevery (190$) | AI56: 190 | AO56: Frais quotidiens
AD57: Vieux Fort | AH57: La Romaine / Harrington Harbour (225$) | AI57: 225 | AO57: Pension (Déjeuner) (8$) | AP57: 8
AH58: La Romaine / La Tabatière (353$) | AI58: 353 | AO58: Pension (Déjeuner-Diner 20$) | AP58: 20
AH59: La Romaine / Mutton Bay (325$) | AI59: 325 | AO59: Pension (Déjeuner-Souper 23$) | AP59: 23
AH60: La Romaine / St-Augustin (451$) | AI60: 451 | AO60: Pension (Diner) (12$) | AP60: 12
AH61: La Romaine / Tête-à-la-Baleine (269$) | AI61: 269 | AO61: Pension (Diner-Souper 27$) | AP61: 27
AH62: La Romaine / Vieux Fort (623$) | AI62: 623 | AO62: Pension (Repas -1 journée 35$) | AP62: 35
AH63: La Tabatière / Harrington Harbour (147$) | AI63: 147 | AO63: Pension (Souper) (15$) | AP63: 15
AH64: La Tabatière / Mutton Bay (24$) | AI64: 24 | AO64: Pension hébergement (30$) | AP64: 30
AH65: La Tabatière / St-Augustin (116$) | AI65: 116 | AO65: Per diem (Déjeuner 15$) | AP65: 15
AH66: La Tabatière / Tête-à-la-Baleine (84$) | AI66: 84 | AO66: Per diem (Déjeuner-Diner 40$) | AP66: 40
AH67: La Tabatière / Vieux-Fort (288$) | AI67: 288 | AO67: Per diem (Déjeuner-Souper 45$) | AP67: 45
AH68: Mutton Bay / Harrington Harbour(125$) | AI68: 125 | AO68: Per diem (Diner 25$) | AP68: 25
AH69: Mutton Bay / La Tabatière (24$) | AI69: 24 | AO69: Per diem (Diner-Souper 55$) | AP69: 55
AH70: Mutton Bay / St-Augustin (169$) | AI70: 169 | AO70: Per diem (Repas-1 journée 70$) | AP70: 70
AH71: Mutton Bay / Tête-à-la-Baleine (57$) | AI71: 57 | AO71: Per diem (Souper 30$) | AP71: 30
AH72: Mutton Bay / Vieux Fort (341$) | AI72: 341 | AO72: Trajet < 15 km (10$) | AP72: 10
AH73: St-Augustin / Harrington Harbour (245$) | AI73: 245
AH74: St-Augustin / Tête-à-la-Baleine (182$) | AI74: 182
AH75: Vieux Fort / Harrington Harbour (417$) | AI75: 417
AH76: Vieux-Fort / Mutton Bay (341$) | AI76: 341
AH77: Vieux-Fort / St-Augustin (172$) | AI77: 172
AH78: Vieux-Fort / Tête-à-la-Baleine (355$) | AI78: 355

Sheet KM (à titre indicatif)
B4: Km à titre indicatif seulement
B5: Kegaska - Natasquan (48,8km)
B6: Blanc-Sablon - Rimouski (1571 km)
B7: Blanc-Sablon -Québec (1883km)
B8: Blanc-Sablon- St-John(966km)
B9: Lourdes-de-Blanc-Sablon - Blanc-Sablon (3,7km)
B10: Montréal - Toronto (556km)
B11: Montréal - Ottawa (202km)
B12: Québec- Sherbrooke (254)
B13: Québec-Montréal (267km)
B14: Rivière St-Paul - Blanc Sablon (65,8km)
B15: Sept-Îles - Havre-St-Pierre (223km)
B16: Sept-Îles - La Malbaie (502 km)
B17: Sept-Îles - Montreal (920 km)
B18: Sept-Îles - Québec (653km)
B19: Sept-Îles- Baie-Comeau (233 km)
B20: Sept-Îles- Natasquan (377km)
B21: St-Barbe - Corner Brooke (350km)
B22: St-Barbe - Deer Lake (298km)
B23: St-Barbe - Port-aux Basques (577km)
B24: St-Barbe - Stephenville (425km)
B25: Vieux Fort - Rivière St-Paul (12km)
B26: Lourdes-de-Blanc-Sablon - Rivière St-Paul (62,1km)
B27: Lourdes de-Blanc-Sablon - Vieux-Fort (74,1 km)

Sheet Modèle (hidden)
C2: LOGO CS DU LITTORAL
AE3: Frais | AG3: Nom du supérieur immédiat
C4: Nom du demandeur | H4: FRAIS | Q4: CODE | AE4: Frais de formation | AG4: Deborah Foltin
C5: William Smith-Dufault | H5: Frais de rencontre | AE5: Frais de rencontre | AG5: Eileen Schofield
AG6: Janet Gallupe
C7: Nom du supérieur immédiat | N7: am pm | AG7: Jean Picard
C8: Jean Picard | I8: DATE DE DÉPART: | J8: 2010-06-09 | L8: HEURE: | M8: 10:00:00 | AG8: Jean-Jacques Rhéaume
AG9: Lucy DeMendoça
I10: DATE DE RETOUR: | J10: 2010-06-15 | L10: HEURE: | M10: 09:30:00 | AG10: Marc-André Masse
AG11: Martine Joncas
C12: Date | D12: Nb jour | E12: Frais Km | F12: $ | G12: Frais remboursé (montant employé) | H12: $ | I12: Allocations versées | K12: Nb fois | L12: $ | M12: Frais fondés sur les reçus | N12: Montant du reçu ($) | O12: Nbr Km | P12: $ | Q12: Total de la ligne | R12: Justification | S12: Reçu manquant | X12: Total ligne | AA12: remb frais | AB12: Kilometrage | AC12: allocation versés entre village | AG12: Nadia Landry | AJ12: Frais fondés sur les reçu
C13: 2010-06-10 | D13: 2 | E13: Blanc-Sablon -Sept-Iles (1800km) | F13: =AB13 -> 828 | G13: Chevery/ Tête-a-la-Baleine (37,50) | H13: =AA13 -> 37.5 | I13: Bureau de poste | J13: La Romaine | K13: 4 | L13: =IF($K13>0,$AC13*$K13," ") -> 32 | M13: Taxi, $ du reçu | N13: 25 | O13: 900 | P13: =IF(O13>0,O13*0.46," ") -> 414 | Q13: =IF(D13>0,X13," ") -> 1336.5 | X13: =(AA13+AB13+(AC13*K13))+IF(O13<0,0,(O13*0.46))+N13 -> 1336.5 | AA13: =IF(ISNA(VLOOKUP($G13,$AH$34:$AI$52,2,FALSE))=TRUE, ,VLOOKUP($G13,$AH$34:$AI$52,2,FALSE)) -> 37.5 | AB13: =IF(ISNA(VLOOKUP($E13,$AF$22:$AH$28,3,FALSE))=TRUE, ,VLOOKUP($E13,$AF$22:$AH$28,3,FALSE)) -> 828 | AC13: =IF($K13=0,0, IF($AB76=1,(VLOOKUP($J13,$AH$78:$AI$91,2)),IF($AB76=2,(VLOOKUP($J13,$AH$78:$AJ$91,3)),IF($AB76=3,(VLOOKUP($J13,$AH$78:$AK$91,4)),IF($AB76=4,(VLOOKUP($J13,$AH$78:$AL$91,5)),))))) -> 8 | AG13: Philipp Robertson | AJ13: autobus
C14: 2010-06-14 | D14: 2 | E14: Sept-Iles - Montreal (900) | F14: =AB14 -> 414 | G14: frais de repas 1/2 jour (dejeuner-Diner) (33,00) | H14: =AA14 -> 33 | I14: Village | J14: Kégaska | K14: 4 | L14: =IF($K14>0,$AC14*$K14," ") -> 0 | M14: Stationnement, $ du reçu | N14: 45 | O14: 34 | P14: =IF(O14>0,O14*0.46," ") -> 15.64 | Q14: =IF(D14>0,X14," ") -> 507.64 | X14: =(AA14+AB14+(AC14*K14))+IF(O14<0,0,(O14*0.46))+N14 -> 507.64 | AA14: 33 | AB14: =IF(ISNA(VLOOKUP($E14,$AF$22:$AH$28,3,FALSE))=TRUE, ,VLOOKUP($E14,$AF$22:$AH$28,3,FALSE)) -> 414 | AC14: =IF($K14=0,0, IF($AB77=1,(VLOOKUP($J14,$AH$78:$AI$92,2)),IF($AB77=2,(VLOOKUP($J14,$AH$78:$AJ$92,3)),IF($AB77=3,(VLOOKUP($J14,$AH$78:$AK$92,4)),IF($AB77=4,(VLOOKUP($J14,$AH$78:$AL$92,5)),))))) -> 0 | AG14: Vincent Joncas | AJ14: Autres
C15: 2010-06-14 | D15: 4 | E15: OFB-Blanc-Sablon (30km) | F15: 14.7 | G15: Hébergment (sans reçu) | H15: =AA15 -> 30 | I15: Aéroport | J15: Chevery | K15: 2 | L15: 16 | P15: =IF(O15>0,O15*0.46," ") ->  | Q15: =IF(D15>0,X15," ") -> 60.7 | X15: 60.7 | AA15: 30 | AB15: 14.7 | AC15: =IF($K15=0,0, IF($AB78=1,(VLOOKUP($J15,$AH$78:$AI$92,2)),IF($AB78=2,(VLOOKUP($J15,$AH$78:$AJ$92,3)),IF($AB78=3,(VLOOKUP($J15,$AH$78:$AK$92,4)),IF($AB78=4,(VLOOKUP($J15,$AH$78:$AL$92,5)),))))) -> 8 | AG15: William Macneil | AJ15: Avion
F16: 0 | H16: 0 | P16: =IF(O16>0,O16*0.46," ") ->  | X16: 0 | AA16: 0 | AB16: 0 | AC16: 0 | AG16: Yves Crépeau | AJ16: Hébergement, fact d'hôtel
F17: 0 | H17: 0 | X17: 0 | AA17: 0 | AB17: 0 | AC17: 0 | AJ17: Stationnement, $ du reçu
F18: 0 | H18: 0 | X18: 0 | AA18: 0 | AB18: 0 | AC18: 0 | AJ18: Taxi, $ du reçu
F19: 0 | H19: 0 | X19: 0 | AA19: 0 | AB19: 0 | AC19: 0 | AJ19: Train, $ du reçu
F20: 0 | H20: 0 | X20: 0 | AA20: 0 | AB20: 0 | AC20: 0 | AJ20: Transport en commun
F21: 0 | H21: 0 | X21: 0 | AA21: 0 | AB21: 0 | AC21: 0 | AF21: Kilometre | AG21: 0.46 | AH21: 0.49 | AJ21: Traverse BS-TN
F22: 0 | H22: 0 | X22: 0 | AA22: 0 | AB22: 0 | AC22: 0 | AF22: Blanc-Sablon- NL (500km) | AG22: 500 | AH22: =AG22*$AG$21 -> 230 | AJ22: Traverse St-Barbe
F23: 0 | H23: 0 | X23: 0 | AA23: 0 | AB23: 0 | AC23: 0 | AF23: Blanc-Sablon -Sept-Iles (1800km) | AG23: 1800 | AH23: =AG23*$AG$21 -> 828
F24: 0 | H24: 0 | X24: 0 | AA24: 0 | AB24: 0 | AC24: 0 | AF24: LBS - Blanc-Sablon (10km) | AG24: 10 | AH24: =$AH$21*AG24 -> 4.9
F25: 0 | H25: 0 | X25: 0 | AA25: 0 | AB25: 0 | AC25: 0 | AF25: OFB-Blanc-Sablon (30km) | AG25: 30 | AH25: =AG25*AH21 -> 14.7
F26: 0 | H26: 0 | X26: 0 | AA26: 0 | AB26: 0 | AC26: 0 | AF26: Sept-Iles - Montreal (900) | AG26: 900 | AH26: =AG26*$AG$21 -> 414
F27: 0 | H27: 0 | X27: 0 | AA27: 0 | AB27: 0 | AC27: 0 | AF27: Sept-Iles - Quebec (700km) | AG27: 700 | AH27: =AG27*$AG$21 -> 322
F28: 0 | H28: 0 | X28: 0 | AA28: 0 | AB28: 0 | AC28: 0 | AF28: St-Paul -Blanc-sablon (20km) | AG28: 20 | AH28: =$AH$21*AG28 -> 9.8
F29: 0 | H29: 0 | X29: 0 | AA29: 0 | AB29: 0 | AC29: 0
I30: Date | J30: =TODAY() -> 2021-11-22 | L30: Réservé à l'administration
B31: Signature de l'employé
L32: Saisi par: | R32: Total du frais de déplacement
B33: Signature du superviseur | R33: =SUM(Q13:Q29) -> 1904.84 | AH33: Remb frais
L34: Code: | AH34: Chevery/ Harrington Harbour (16,50) | AI34: 16.5
AH35: Chevery/ Kegaska (142,50) | AI35: 142.5
L36: Date: | AH36: Chevery/ La Tabatière (75,50) | AI36: 75.5
AH37: Chevery/ Rivière St-Augustin (130,00) | AI37: 130
AH38: Chevery/ Tête-a-la-Baleine (37,50) | AI38: 37.5
AH39: Chevery/La Romaine (90.00) | AI39: 90
Q40: =T(C8) -> Jean Picard | AH40: Dejeuner (10,00) | AI40: 10
AH41: Diner (15,00) | AI41: 15
AH42: frais de repas 1/2 jour (dejeuner-Diner) (33,00) | AI42: 33
AH43: Frais de repas 1/2 jour (Diner-Souper 50,00) | AI43: =15+ 27+8 -> 50
AH44: Hébergment (sans reçu) | AI44: 30
AH45: Kegaska / La Romaine (53,50) | AI45: 53.5
AH46: Kegaska/Natasquan (45.00) | AI46: 45
AH47: La Tabatière/ Old Fort Bay (12,00) | AI47: 12
AH48: La Tabatière/ Rivière St-Augustin (54,50) | AI48: 54.5
AH49: Rivière St-Augustin/ Old Fort Bay (75,50) | AI49: 75.5
AH50: Souper (27,00) | AI50: 27
AH51: Tête-a-la-Baleine/ La Tabatière (45,00) | AI51: 45
AC73: Mutton Bay
AB76: =VLOOKUP($I13,$AD$78:$AE$81,2) -> 2 | AH76: Allocation lors des déplacemen
AB77: =VLOOKUP($I14,$AD$78:$AE$81,2) -> 4 | AH77: Village | AI77: Aéroport | AJ77: Bureau de poste | AK77: Quai | AL77: Village
AB78: 1 | AD78: Aéroport | AE78: 1 | AH78: Blanc-Sablon | AI78: 10 | AJ78: 8 | AK78: 8 | AL78: 8
AD79: Bureau de poste | AE79: 2 | AH79: Chevery | AI79: 8 | AJ79: 8 | AK79: 8 | AL79: 0
AD80: Quai | AE80: 3 | AH80: Chevery (succursale) | AI80: 8 | AJ80: 8 | AK80: 8 | AL80: 0
AD81: Village | AE81: 4 | AH81: Harrington | AI81: 0 | AJ81: 8 | AK81: 8 | AL81: 0
AH82: Kégaska | AI82: 8 | AJ82: 8 | AK82: 8 | AL82: 0
AH83: La Romaine | AI83: 8 | AJ83: 8 | AK83: 8 | AL83: 0
AH84: La Tabatière | AI84: 8 | AJ84: 8 | AK84: 8 | AL84: 0
AH85: Middle bay | AI85: 0 | AJ85: 0 | AK85: 0 | AL85: 0
AH86: Mutton Bay | AI86: 8 | AJ86: 8 | AK86: 8 | AL86: 0
AH87: Old Fort Bay | AI87: 75 | AJ87: 8 | AK87: 8 | AL87: 0
AH88: Port-Menier | AI88: 8 | AJ88: 8 | AK88: 8 | AL88: 8
AH89: St-Augustin | AI89: 8 | AJ89: 8 | AK89: 8 | AL89: 0
AH90: St-Paul | AI90: 51.5 | AJ90: 8 | AK90: 24 | AL90: 0
AH91: Tête-à-la-Baleine | AI91: 8 | AJ91: 8 | AK91: 18 | AL91: 0
C184: Frais Quotidiens hors Québec | P184: Frais fondés sur les reçus hors Québec
C186: Allocation forf 12 hres -ADM 67,50$ | D186: 67.5 | P186: Allocation forf modifiée
C187: Allocation forf 12 hres -ADM 135$ | D187: 135 | P187: Allocation quotidienne 60% de l'héberg.+ repas
C188: Repas - Déjeuner 10,40$ | D188: 10.4 | E188: Indemnité -Repas au Québec-Déjeuner (Dir. 61111, art.13a) 10,40$ | P188: Appel téléphonique - Bureau, $ du reçu
C189: Repas - Diner 14.30$ | D189: 14.3 | E189: Indemnité -Repas au Québec-Diner (Dir. 61111, art. 13b) 14.30$ | P189: Appel téléphonique - Personnel, $ du reçu
C190: Repas - Souper 21.55$ | D190: 21.55 | E190: Indemnité -Repas au Québec-Souper (Dir. 61111, art. 13c) 21.55$ | P190: Assignation - Indem, hebdomadaire
P191: Autres
P192: Essence (pr loc d'auto),
P193: Frais d'obtention - Devises
P194: Frais d'obtention - Passeport
P195: Hébergement, fact d'hôtel
P196: Location de voiture
P197: Petites dépenses (10%)
P198: R-Déjeuner au restaurant (20%
P199: R-Diner au restaurant (35%)
P200: R-Repas jour complet
P201: R-Souper au restaurant (45%)
P202: Stationnement, $ du reçu
P203: Taxi, $ du reçu
P204: Train, $ du reçu
P205: Transport en commun
